[Event "Early-Titled-Tuesday-Blitz-February-06-2024"]
[Site "Chess.com"]
[Date "2024.02.06"]
[Round "11"]
[White "KuzubovYuriy"]
[Black "ulises2013"]
[Result "1-0"]
[WhiteElo "2904"]
[BlackElo "2730"]
[TimeControl "180+1"]
[EndTime "10:06:07 PST"]
[Termination "KuzubovYuriy won by resignation"]

1. Nf3 {[%clk 0:03:00.9]} 1... g6 {[%clk 0:03:00.9]} 2. d4 {[%clk 0:03:00.2]}
2... Bg7 {[%clk 0:03:01.4]} 3. Nbd2 {[%clk 0:03:00.8]} 3... c5 {[%clk
0:03:01.7]} 4. dxc5 {[%clk 0:02:59.9]} 4... Qa5 {[%clk 0:03:00.7]} 5. a3 {[%clk
0:02:56.5]} 5... Qxc5 {[%clk 0:03:00.5]} 6. b4 {[%clk 0:02:56.6]} 6... Qc7
{[%clk 0:03:00.5]} 7. Rb1 {[%clk 0:02:55.1]} 7... Nf6 {[%clk 0:03:00.5]} 8. Bb2
{[%clk 0:02:53.6]} 8... O-O {[%clk 0:03:01.2]} 9. g3 {[%clk 0:02:52]} 9... a5
{[%clk 0:02:59]} 10. Bg2 {[%clk 0:02:47.1]} 10... axb4 {[%clk 0:02:56.9]} 11.
axb4 {[%clk 0:02:47.6]} 11... Nc6 {[%clk 0:02:57.5]} 12. O-O {[%clk 0:02:46.6]}
12... d6 {[%clk 0:02:54.4]} 13. b5 {[%clk 0:02:34.2]} 13... Na5 {[%clk
0:02:54.3]} 14. Nd4 {[%clk 0:02:28.6]} 14... Nc4 {[%clk 0:02:39.7]} 15. Nxc4
{[%clk 0:02:25.8]} 15... Qxc4 {[%clk 0:02:40.6]} 16. Qd3 {[%clk 0:02:25.8]}
16... Ra4 {[%clk 0:02:40.5]} 17. Ra1 {[%clk 0:02:18.7]} 17... Nd7 {[%clk
0:02:33.3]} 18. e3 {[%clk 0:02:02.4]} 18... Nc5 {[%clk 0:02:24.7]} 19. Qxc4
{[%clk 0:02:00.7]} 19... Rxc4 {[%clk 0:02:25.6]} 20. Ra7 {[%clk 0:01:41.8]}
20... Na4 {[%clk 0:02:22.8]} 21. Ba1 {[%clk 0:01:37.8]} 21... Nc5 {[%clk
0:02:15.7]} 22. Bd5 {[%clk 0:01:24.3]} 22... Ra4 {[%clk 0:02:10.8]} 23. Rxa4
{[%clk 0:01:22.3]} 23... Nxa4 {[%clk 0:02:11.7]} 24. Rb1 {[%clk 0:01:22.4]}
24... e6 {[%clk 0:02:07.2]} 25. Bf3 {[%clk 0:01:19.3]} 25... Nc5 {[%clk
0:02:00.6]} 26. Bc3 {[%clk 0:01:13.4]} 26... e5 {[%clk 0:01:54.5]} 27. Nb3
{[%clk 0:01:07.3]} 27... e4 {[%clk 0:01:50.1]} 28. Bxg7 {[%clk 0:01:02.6]} 28...
Kxg7 {[%clk 0:01:51]} 29. Nxc5 {[%clk 0:00:55.7]} 29... exf3 {[%clk 0:01:50.6]}
30. Ne4 {[%clk 0:00:56.3]} 30... Rd8 {[%clk 0:01:43.4]} 31. Nd2 {[%clk
0:00:51.1]} 31... Bg4 {[%clk 0:01:35.2]} 32. h3 {[%clk 0:00:51.3]} 32... Bxh3
{[%clk 0:01:35.4]} 33. Nxf3 {[%clk 0:00:51.9]} 33... Bf5 {[%clk 0:01:33.6]} 34.
Nd4 {[%clk 0:00:51.8]} 34... Be4 {[%clk 0:01:33.4]} 35. f3 {[%clk 0:00:45]}
35... Bd5 {[%clk 0:01:33.7]} 36. Ra1 {[%clk 0:00:44.9]} 36... Rd7 {[%clk
0:01:31.4]} 37. e4 {[%clk 0:00:40.3]} 37... Bc4 {[%clk 0:01:31.5]} 38. Kf2
{[%clk 0:00:40.9]} 38... Re7 {[%clk 0:01:29.4]} 39. Ra7 {[%clk 0:00:37.2]} 39...
Kf6 {[%clk 0:01:20.4]} 40. Ra8 {[%clk 0:00:26]} 40... Rd7 {[%clk 0:01:14]} 41.
Rc8 {[%clk 0:00:24.2]} 41... Be6 {[%clk 0:01:13.8]} 42. f4 {[%clk 0:00:20.1]}
42... d5 {[%clk 0:01:10.3]} 43. e5+ {[%clk 0:00:20.1]} 43... Ke7 {[%clk
0:01:02.8]} 44. Ke3 {[%clk 0:00:20.2]} 44... Bg4 {[%clk 0:01:01]} 45. b6 {[%clk
0:00:20.2]} 45... h5 {[%clk 0:00:59.6]} 46. Rc5 {[%clk 0:00:20.1]} 46... Kf8
{[%clk 0:00:55.5]} 47. Nb5 {[%clk 0:00:19.3]} 47... Kg7 {[%clk 0:00:52.7]} 48.
Rc7 {[%clk 0:00:19.5]} 48... Bf5 {[%clk 0:00:48.3]} 49. Nd6 {[%clk 0:00:19.3]}
49... Be6 {[%clk 0:00:46.9]} 50. Rxd7 {[%clk 0:00:19.3]} 50... Bxd7 {[%clk
0:00:46.8]} 51. Nxb7 {[%clk 0:00:20]} 51... Kf8 {[%clk 0:00:47.4]} 52. Nc5
{[%clk 0:00:20.3]} 52... Bc6 {[%clk 0:00:47.4]} 53. b7 {[%clk 0:00:20.9]} 1-0

[Event "Early-Titled-Tuesday-Blitz-February-06-2024"]
[Site "Chess.com"]
[Date "2024.02.06"]
[Round "11"]
[White "Drags95"]
[Black "ViralduS"]
[Result "1-0"]
[WhiteElo "2840"]
[BlackElo "2719"]
[TimeControl "180+1"]
[EndTime "10:06:08 PST"]
[Termination "Drags95 won by checkmate"]

1. d4 {[%clk 0:03:00.9]} 1... Nf6 {[%clk 0:02:56.6]} 2. c4 {[%clk 0:02:57.5]}
2... g6 {[%clk 0:02:53.9]} 3. Nc3 {[%clk 0:02:57.6]} 3... Bg7 {[%clk 0:02:45.8]}
4. e4 {[%clk 0:02:55.1]} 4... d6 {[%clk 0:02:45.8]} 5. Be2 {[%clk 0:02:55.3]}
5... Nc6 {[%clk 0:02:38.5]} 6. Nf3 {[%clk 0:02:51.6]} 6... O-O {[%clk
0:02:24.5]} 7. d5 {[%clk 0:02:50.6]} 7... Ne5 {[%clk 0:02:15.6]} 8. Nxe5 {[%clk
0:02:49.2]} 8... dxe5 {[%clk 0:02:16.5]} 9. O-O {[%clk 0:02:48.1]} 9... e6
{[%clk 0:02:16.8]} 10. Be3 {[%clk 0:02:41.9]} 10... exd5 {[%clk 0:02:15.6]} 11.
cxd5 {[%clk 0:02:42.8]} 11... Ne8 {[%clk 0:02:13.1]} 12. Rc1 {[%clk 0:02:40.3]}
12... a6 {[%clk 0:02:13.1]} 13. b4 {[%clk 0:02:36.7]} 13... Nd6 {[%clk
0:02:12.8]} 14. a4 {[%clk 0:02:34.2]} 14... b6 {[%clk 0:01:44.1]} 15. a5 {[%clk
0:01:48.2]} 15... Bd7 {[%clk 0:01:41.4]} 16. Qc2 {[%clk 0:01:42.1]} 16... f5
{[%clk 0:01:35.2]} 17. f3 {[%clk 0:01:41.5]} 17... Bf6 {[%clk 0:01:35.2]} 18.
Qd2 {[%clk 0:01:17.8]} 18... Rf7 {[%clk 0:01:34.8]} 19. axb6 {[%clk 0:01:12.1]}
19... cxb6 {[%clk 0:01:34.5]} 20. Ra1 {[%clk 0:01:12.7]} 20... a5 {[%clk
0:00:47.4]} 21. bxa5 {[%clk 0:01:13.6]} 21... bxa5 {[%clk 0:00:47.6]} 22. Bd3
{[%clk 0:01:05.9]} 22... Rc8 {[%clk 0:00:42.4]} 23. Na4 {[%clk 0:01:04.6]} 23...
Nc4 {[%clk 0:00:34.4]} 24. Bxc4 {[%clk 0:01:03.1]} 24... Rxc4 {[%clk 0:00:35.3]}
25. Nb6 {[%clk 0:01:02.4]} 25... Rb4 {[%clk 0:00:30.7]} 26. Rfb1 {[%clk
0:00:40.8]} 26... fxe4 {[%clk 0:00:30.2]} 27. Rxb4 {[%clk 0:00:39.4]} 27... exf3
{[%clk 0:00:17.3]} 28. Rxa5 {[%clk 0:00:39.9]} 28... Qe7 {[%clk 0:00:16.8]} 29.
Nxd7 {[%clk 0:00:34.5]} 29... Qxd7 {[%clk 0:00:16.8]} 30. Ra7 {[%clk 0:00:34.2]}
30... Qg4 {[%clk 0:00:16.5]} 31. Rb8+ {[%clk 0:00:31.8]} 31... Rf8 {[%clk
0:00:15.1]} 32. Rxf8+ {[%clk 0:00:30.2]} 32... Kxf8 {[%clk 0:00:15.6]} 33. Qf2
{[%clk 0:00:28.1]} 33... e4 {[%clk 0:00:15]} 34. d6 {[%clk 0:00:26.6]} 34... Bh4
{[%clk 0:00:14.1]} 35. g3 {[%clk 0:00:25.3]} 35... Bd8 {[%clk 0:00:13.4]} 36.
Qb2 {[%clk 0:00:24.2]} 36... Ke8 {[%clk 0:00:07.9]} 37. Qh8# {[%clk 0:00:23.1]}
1-0

[Event "Early-Titled-Tuesday-Blitz-February-06-2024"]
[Site "Chess.com"]
[Date "2024.02.06"]
[Round "11"]
[White "mitrabhaa"]
[Black "dropstoneDP"]
[Result "1-0"]
[WhiteElo "2940"]
[BlackElo "3019"]
[TimeControl "180+1"]
[EndTime "10:06:10 PST"]
[Termination "mitrabhaa won by resignation"]

1. Nf3 {[%clk 0:03:00]} 1... d5 {[%clk 0:03:00]} 2. c4 {[%clk 0:03:00]} 2... d4
{[%clk 0:02:58.4]} 3. g3 {[%clk 0:03:00.4]} 3... Nc6 {[%clk 0:02:58.1]} 4. Bg2
{[%clk 0:03:00.9]} 4... e5 {[%clk 0:02:58.8]} 5. O-O {[%clk 0:03:01]} 5... e4
{[%clk 0:02:43.8]} 6. Ne1 {[%clk 0:03:01]} 6... h5 {[%clk 0:02:43.1]} 7. h4
{[%clk 0:02:58.9]} 7... g5 {[%clk 0:02:42.2]} 8. hxg5 {[%clk 0:02:58.1]} 8... h4
{[%clk 0:02:41.8]} 9. d3 {[%clk 0:02:48]} 9... hxg3 {[%clk 0:02:27.1]} 10. Bxe4
{[%clk 0:02:37]} 10... Bh3 {[%clk 0:02:22]} 11. Ng2 {[%clk 0:02:34.7]} 11... Bd6
{[%clk 0:02:00.5]} 12. f4 {[%clk 0:02:25.9]} 12... Nge7 {[%clk 0:01:59.5]} 13.
f5 {[%clk 0:02:21.5]} 13... Qd7 {[%clk 0:01:58.8]} 14. c5 {[%clk 0:02:16.1]}
14... Bxc5 {[%clk 0:01:56.8]} 15. Qb3 {[%clk 0:02:07.6]} 15... O-O-O {[%clk
0:01:31.9]} 16. Qxf7 {[%clk 0:02:04.9]} 16... Rdf8 {[%clk 0:01:32]} 17. Qe6
{[%clk 0:02:05.1]} 17... Qxe6 {[%clk 0:01:32]} 18. fxe6 {[%clk 0:02:06]} 18...
Rxf1+ {[%clk 0:01:31.2]} 19. Kxf1 {[%clk 0:02:06.9]} 19... Bxe6 {[%clk
0:01:31.2]} 20. Nf4 {[%clk 0:02:07.5]} 20... Bf5 {[%clk 0:01:29.3]} 21. Nd2
{[%clk 0:02:05.3]} 21... Ne5 {[%clk 0:01:08.5]} 22. Kg2 {[%clk 0:01:43.7]} 22...
Rh4 {[%clk 0:00:49.9]} 23. Nf3 {[%clk 0:01:32.3]} 23... Nxf3 {[%clk 0:00:50.1]}
24. exf3 {[%clk 0:01:32.3]} 24... Bxe4 {[%clk 0:00:41.7]} 25. dxe4 {[%clk
0:01:08.1]} 25... Bd6 {[%clk 0:00:41.5]} 26. Nh3 {[%clk 0:01:08.7]} 26... Ng6
{[%clk 0:00:41]} 27. Bd2 {[%clk 0:01:07.8]} 27... c5 {[%clk 0:00:39.1]} 28. Be1
{[%clk 0:00:59.3]} 28... Rh8 {[%clk 0:00:24.7]} 29. Bxg3 {[%clk 0:00:58.7]}
29... Nh4+ {[%clk 0:00:25.1]} 30. Kf2 {[%clk 0:00:41.1]} 30... Nxf3 {[%clk
0:00:22.6]} 31. Bxd6 {[%clk 0:00:40.9]} 31... Rxh3 {[%clk 0:00:19.7]} 32. g6
{[%clk 0:00:41.3]} 32... Rh6 {[%clk 0:00:04.6]} 33. Kxf3 {[%clk 0:00:38.4]}
33... Rxg6 {[%clk 0:00:04.8]} 34. Bxc5 {[%clk 0:00:39]} 34... d3 {[%clk
0:00:04.8]} 35. Bd4 {[%clk 0:00:36.9]} 35... Rd6 {[%clk 0:00:02.1]} 36. Bc3
{[%clk 0:00:36.7]} 1-0

[Event "Early-Titled-Tuesday-Blitz-February-06-2024"]
[Site "Chess.com"]
[Date "2024.02.06"]
[Round "11"]
[White "DDTerziev04"]
[Black "bteillet"]
[Result "0-1"]
[WhiteElo "2281"]
[BlackElo "2167"]
[TimeControl "180+1"]
[EndTime "10:06:11 PST"]
[Termination "bteillet won on time"]

1. e4 {[%clk 0:03:00.9]} 1... d6 {[%clk 0:02:57.8]} 2. d4 {[%clk 0:03:00.6]}
2... Nf6 {[%clk 0:02:57.9]} 3. Nc3 {[%clk 0:03:01]} 3... g6 {[%clk 0:02:58]} 4.
Bc4 {[%clk 0:02:58.9]} 4... Bg7 {[%clk 0:02:54.2]} 5. Nf3 {[%clk 0:02:59.3]}
5... O-O {[%clk 0:02:49.1]} 6. h3 {[%clk 0:02:58.7]} 6... Nxe4 {[%clk
0:02:45.3]} 7. Nxe4 {[%clk 0:02:57.3]} 7... d5 {[%clk 0:02:43.9]} 8. Bd3 {[%clk
0:02:53.2]} 8... dxe4 {[%clk 0:02:43.7]} 9. Bxe4 {[%clk 0:02:54.1]} 9... Nd7
{[%clk 0:02:41.8]} 10. c3 {[%clk 0:02:53.7]} 10... c5 {[%clk 0:02:41.3]} 11. Be3
{[%clk 0:02:52.7]} 11... cxd4 {[%clk 0:02:35.9]} 12. Nxd4 {[%clk 0:02:52.4]}
12... e5 {[%clk 0:02:34.5]} 13. Nb3 {[%clk 0:02:48.4]} 13... Nf6 {[%clk
0:02:23.6]} 14. Bf3 {[%clk 0:02:42.4]} 14... e4 {[%clk 0:02:12.9]} 15. Be2
{[%clk 0:02:38.6]} 15... Be6 {[%clk 0:01:50.3]} 16. O-O {[%clk 0:02:37]} 16...
Nd5 {[%clk 0:01:50.1]} 17. Bd4 {[%clk 0:02:35.1]} 17... Qg5 {[%clk 0:01:48.4]}
18. Kh1 {[%clk 0:02:23.1]} 18... Nf4 {[%clk 0:01:45.7]} 19. Rg1 {[%clk
0:02:09.4]} 19... Rad8 {[%clk 0:01:29.2]} 20. Kh2 {[%clk 0:01:47.9]} 20... Be5
{[%clk 0:01:21.9]} 21. Kh1 {[%clk 0:01:31]} 21... Qh6 {[%clk 0:01:12.7]} 22. Bg4
{[%clk 0:00:43.7]} 22... f5 {[%clk 0:00:53.2]} 23. Bxe5 {[%clk 0:00:14.3]} 23...
Rxd1 {[%clk 0:00:49.4]} 24. Raxd1 {[%clk 0:00:13]} 24... fxg4 {[%clk 0:00:47.9]}
25. Nd4 {[%clk 0:00:12.4]} 25... Bd5 {[%clk 0:00:38.5]} 26. Kh2 {[%clk 0:00:08]}
26... gxh3 {[%clk 0:00:37.2]} 27. g3 {[%clk 0:00:08.1]} 27... Ne6 {[%clk
0:00:31.4]} 28. Rgf1 {[%clk 0:00:05.7]} 28... e3 {[%clk 0:00:26.1]} 29. Bf4
{[%clk 0:00:03.9]} 29... Nxf4 {[%clk 0:00:24.2]} 30. fxe3 {[%clk 0:00:03.6]}
30... Ne2 {[%clk 0:00:19.5]} 31. Rxf8+ {[%clk 0:00:02]} 31... Qxf8 {[%clk
0:00:18.8]} 0-1

[Event "Early-Titled-Tuesday-Blitz-February-06-2024"]
[Site "Chess.com"]
[Date "2024.02.06"]
[Round "11"]
[White "cristiano78"]
[Black "Matols"]
[Result "0-1"]
[WhiteElo "2282"]
[BlackElo "2396"]
[TimeControl "180+1"]
[EndTime "10:06:12 PST"]
[Termination "Matols won on time"]

1. d4 {[%clk 0:02:43.9]} 1... d5 {[%clk 0:02:58.9]} 2. c4 {[%clk 0:02:40.4]}
2... e6 {[%clk 0:02:58]} 3. Nf3 {[%clk 0:02:39.1]} 3... Nf6 {[%clk 0:02:57.9]}
4. Nc3 {[%clk 0:02:38]} 4... a6 {[%clk 0:02:58]} 5. a4 {[%clk 0:02:36.2]} 5...
dxc4 {[%clk 0:02:50.9]} 6. e4 {[%clk 0:02:33.6]} 6... c5 {[%clk 0:02:49.9]} 7.
Bxc4 {[%clk 0:02:31.6]} 7... cxd4 {[%clk 0:02:44.6]} 8. Nxd4 {[%clk 0:02:30.1]}
8... Bb4 {[%clk 0:02:42.5]} 9. e5 {[%clk 0:02:30]} 9... Nd5 {[%clk 0:02:40.5]}
10. Bxd5 {[%clk 0:02:29.3]} 10... Qxd5 {[%clk 0:02:41.4]} 11. O-O {[%clk
0:02:26.3]} 11... Qxe5 {[%clk 0:02:34]} 12. Re1 {[%clk 0:02:25.9]} 12... Qa5
{[%clk 0:02:19.1]} 13. Nb3 {[%clk 0:02:20.9]} 13... Qd8 {[%clk 0:02:10.2]} 14.
Qg4 {[%clk 0:02:15.8]} 14... Bxc3 {[%clk 0:02:08.5]} 15. bxc3 {[%clk 0:02:15.8]}
15... O-O {[%clk 0:02:05.8]} 16. Bg5 {[%clk 0:02:05.7]} 16... f6 {[%clk
0:01:34.1]} 17. Bh6 {[%clk 0:02:04.5]} 17... Qc7 {[%clk 0:01:26.6]} 18. Rac1
{[%clk 0:01:18.5]} 18... e5 {[%clk 0:01:24.9]} 19. Qg3 {[%clk 0:01:06.8]} 19...
Bf5 {[%clk 0:01:21]} 20. f4 {[%clk 0:00:22.3]} 20... Kh8 {[%clk 0:01:01.6]} 21.
fxe5 {[%clk 0:00:19]} 21... gxh6 {[%clk 0:01:00.2]} 22. Qf2 {[%clk 0:00:18.6]}
22... Bg6 {[%clk 0:00:48.6]} 23. exf6 {[%clk 0:00:16.5]} 23... Nc6 {[%clk
0:00:46.8]} 24. Nd4 {[%clk 0:00:12.3]} 24... Nxd4 {[%clk 0:00:42.6]} 25. cxd4
{[%clk 0:00:12]} 25... Qf7 {[%clk 0:00:41]} 26. Qe3 {[%clk 0:00:07.8]} 26...
Qxf6 {[%clk 0:00:38.4]} 27. Qxh6 {[%clk 0:00:07.3]} 27... Qxd4+ {[%clk
0:00:37.6]} 28. Kh1 {[%clk 0:00:06.3]} 28... Rae8 {[%clk 0:00:31.6]} 29. Rxe8
{[%clk 0:00:03.3]} 29... Rxe8 {[%clk 0:00:32.5]} 30. h3 {[%clk 0:00:02.1]} 30...
Qe3 {[%clk 0:00:20.8]} 0-1

[Event "Early-Titled-Tuesday-Blitz-February-06-2024"]
[Site "Chess.com"]
[Date "2024.02.06"]
[Round "11"]
[White "RobertJFischer71"]
[Black "Flawless_Fighter"]
[Result "0-1"]
[WhiteElo "2569"]
[BlackElo "2726"]
[TimeControl "180+1"]
[EndTime "10:06:16 PST"]
[Termination "Flawless_Fighter won by resignation"]

1. e4 {[%clk 0:02:58.3]} 1... c5 {[%clk 0:02:57.4]} 2. Nf3 {[%clk 0:02:58.8]}
2... d6 {[%clk 0:02:57.9]} 3. d4 {[%clk 0:02:59.6]} 3... cxd4 {[%clk 0:02:58.8]}
4. Nxd4 {[%clk 0:03:00.5]} 4... Nf6 {[%clk 0:02:59.6]} 5. Nc3 {[%clk 0:03:01.2]}
5... a6 {[%clk 0:03:00.4]} 6. h3 {[%clk 0:03:01.2]} 6... e5 {[%clk 0:02:59.8]}
7. Nb3 {[%clk 0:03:01.6]} 7... Be6 {[%clk 0:02:59.3]} 8. f4 {[%clk 0:03:01]}
8... Qc7 {[%clk 0:02:56.1]} 9. f5 {[%clk 0:02:58.8]} 9... Bc4 {[%clk 0:02:56.1]}
10. Bg5 {[%clk 0:02:58.8]} 10... Nbd7 {[%clk 0:02:52.7]} 11. Qd2 {[%clk
0:02:59.2]} 11... Be7 {[%clk 0:02:50.1]} 12. O-O-O {[%clk 0:02:58.2]} 12... b5
{[%clk 0:02:45.5]} 13. Bxf6 {[%clk 0:02:38.8]} 13... Nxf6 {[%clk 0:02:45]} 14.
Qe3 {[%clk 0:02:24.2]} 14... Rc8 {[%clk 0:02:38.5]} 15. Bxc4 {[%clk 0:02:09.7]}
15... Qxc4 {[%clk 0:02:36.9]} 16. a3 {[%clk 0:01:58.3]} 16... O-O {[%clk
0:02:05.6]} 17. Qd3 {[%clk 0:01:44.5]} 17... Rfd8 {[%clk 0:01:53.5]} 18. Rhe1
{[%clk 0:01:39.5]} 18... h5 {[%clk 0:01:48.9]} 19. Qxc4 {[%clk 0:01:24.5]} 19...
Rxc4 {[%clk 0:01:44.6]} 20. Nd5 {[%clk 0:01:24.1]} 20... Nxd5 {[%clk 0:01:38.4]}
21. Rxd5 {[%clk 0:01:25]} 21... Rdc8 {[%clk 0:01:26.8]} 22. Re2 {[%clk
0:01:24.8]} 22... g6 {[%clk 0:01:26.6]} 23. g4 {[%clk 0:01:21.6]} 23... hxg4
{[%clk 0:01:23.6]} 24. hxg4 {[%clk 0:01:22.5]} 24... Kg7 {[%clk 0:01:23.6]} 25.
c3 {[%clk 0:01:14.7]} 25... Rh8 {[%clk 0:01:20]} 26. Kc2 {[%clk 0:01:02.9]}
26... Rh4 {[%clk 0:01:19.1]} 27. Nd2 {[%clk 0:01:03.3]} 27... Rc8 {[%clk
0:01:18.4]} 28. Rg2 {[%clk 0:01:03.4]} 28... Rc6 {[%clk 0:01:14.5]} 29. g5
{[%clk 0:00:58.8]} 29... gxf5 {[%clk 0:01:04.4]} 30. exf5 {[%clk 0:00:58.2]}
30... Bd8 {[%clk 0:01:05.1]} 31. g6 {[%clk 0:00:38.7]} 31... Rf4 {[%clk
0:00:50.7]} 32. gxf7+ {[%clk 0:00:30]} 32... Kxf7 {[%clk 0:00:51.6]} 33. Rg6
{[%clk 0:00:19.2]} 33... Be7 {[%clk 0:00:51.6]} 34. Rh6 {[%clk 0:00:17.8]} 34...
Rf2 {[%clk 0:00:40.4]} 35. Kd3 {[%clk 0:00:17.5]} 35... Rxd2+ {[%clk 0:00:38.1]}
36. Kxd2 {[%clk 0:00:14.8]} 36... Bg5+ {[%clk 0:00:38.4]} 37. Kd3 {[%clk
0:00:14.8]} 37... Bxh6 {[%clk 0:00:39.3]} 38. b3 {[%clk 0:00:14.9]} 38... Kf6
{[%clk 0:00:38.4]} 0-1

[Event "Early-Titled-Tuesday-Blitz-February-06-2024"]
[Site "Chess.com"]
[Date "2024.02.06"]
[Round "11"]
[White "javirec"]
[Black "Qingdom"]
[Result "1-0"]
[WhiteElo "2289"]
[BlackElo "2122"]
[TimeControl "180+1"]
[EndTime "10:06:16 PST"]
[Termination "javirec won by checkmate"]

1. e4 {[%clk 0:02:46.1]} 1... c5 {[%clk 0:02:59.7]} 2. c3 {[%clk 0:02:45.2]}
2... Nf6 {[%clk 0:02:59.2]} 3. e5 {[%clk 0:02:45.2]} 3... Nd5 {[%clk 0:02:59.4]}
4. Bc4 {[%clk 0:02:45.7]} 4... Nb6 {[%clk 0:02:59.5]} 5. Bb3 {[%clk 0:02:45.8]}
5... c4 {[%clk 0:02:59.2]} 6. Bc2 {[%clk 0:02:45.7]} 6... Nc6 {[%clk 0:02:59.4]}
7. Nf3 {[%clk 0:02:43.2]} 7... d6 {[%clk 0:02:59]} 8. exd6 {[%clk 0:02:43.1]}
8... e5 {[%clk 0:02:58.4]} 9. O-O {[%clk 0:02:36.8]} 9... Bxd6 {[%clk
0:02:58.5]} 10. b3 {[%clk 0:02:27.9]} 10... O-O {[%clk 0:02:56.9]} 11. bxc4
{[%clk 0:02:26.7]} 11... Nxc4 {[%clk 0:02:57]} 12. Qe2 {[%clk 0:02:02.9]} 12...
Nb6 {[%clk 0:02:56.5]} 13. h3 {[%clk 0:02:01.8]} 13... f5 {[%clk 0:02:52.4]} 14.
d4 {[%clk 0:01:52.2]} 14... e4 {[%clk 0:02:44.3]} 15. Bb3+ {[%clk 0:01:51.5]}
15... Kh8 {[%clk 0:02:43.5]} 16. Ng5 {[%clk 0:01:49.2]} 16... Qf6 {[%clk
0:02:39.8]} 17. Qh5 {[%clk 0:01:37.4]} 17... h6 {[%clk 0:02:36.9]} 18. Nf7+
{[%clk 0:01:30.8]} 18... Rxf7 {[%clk 0:02:36]} 19. Qxf7 {[%clk 0:01:31.7]} 19...
Qxf7 {[%clk 0:02:34.3]} 20. Bxf7 {[%clk 0:01:32.6]} 20... g5 {[%clk 0:02:30.2]}
21. Ba3 {[%clk 0:01:26.2]} 21... Bc7 {[%clk 0:02:21.1]} 22. Nd2 {[%clk
0:01:21.3]} 22... Kg7 {[%clk 0:02:20.4]} 23. Bb3 {[%clk 0:01:20.2]} 23... Bd7
{[%clk 0:02:16.5]} 24. Bc5 {[%clk 0:01:14.8]} 24... Bf4 {[%clk 0:02:12.6]} 25.
Nc4 {[%clk 0:01:05.5]} 25... Nxc4 {[%clk 0:02:11.9]} 26. Bxc4 {[%clk 0:01:06.4]}
26... b6 {[%clk 0:02:09.5]} 27. Ba3 {[%clk 0:01:02.6]} 27... Na5 {[%clk
0:02:08.2]} 28. Bb3 {[%clk 0:00:58.5]} 28... Nxb3 {[%clk 0:02:06.5]} 29. axb3
{[%clk 0:00:59.4]} 29... Rc8 {[%clk 0:02:03.6]} 30. c4 {[%clk 0:00:56.8]} 30...
a5 {[%clk 0:02:01.1]} 31. Bb2 {[%clk 0:00:56.6]} 31... Kf7 {[%clk 0:01:58]} 32.
d5 {[%clk 0:00:52.2]} 32... Bd2 {[%clk 0:01:57.1]} 33. Rfd1 {[%clk 0:00:50]}
33... Bb4 {[%clk 0:01:56.9]} 34. Rdc1 {[%clk 0:00:44.6]} 34... Bc5 {[%clk
0:01:56.1]} 35. Ba3 {[%clk 0:00:37.6]} 35... Bd4 {[%clk 0:01:53.2]} 36. Rab1
{[%clk 0:00:37.2]} 36... f4 {[%clk 0:01:52.5]} 37. Bb2 {[%clk 0:00:33.4]} 37...
Bc5 {[%clk 0:01:51.6]} 38. Rd1 {[%clk 0:00:28.5]} 38... Bf5 {[%clk 0:01:51.4]}
39. Bd4 {[%clk 0:00:24.9]} 39... e3 {[%clk 0:01:44.8]} 40. Rb2 {[%clk
0:00:16.2]} 40... exf2+ {[%clk 0:01:38.1]} 41. Bxf2 {[%clk 0:00:14.1]} 41... Re8
{[%clk 0:01:34.9]} 42. Bxc5 {[%clk 0:00:13.7]} 42... bxc5 {[%clk 0:01:35.2]} 43.
Kf2 {[%clk 0:00:13.5]} 43... Re3 {[%clk 0:01:34.6]} 44. Re1 {[%clk 0:00:11.4]}
44... Rc3 {[%clk 0:01:32.6]} 45. d6 {[%clk 0:00:08.8]} 45... Be6 {[%clk
0:01:31]} 46. Rd1 {[%clk 0:00:07.4]} 46... Ke8 {[%clk 0:01:30]} 47. d7+ {[%clk
0:00:04]} 47... Bxd7 {[%clk 0:01:28.6]} 48. Re2+ {[%clk 0:00:04.6]} 48... Kd8
{[%clk 0:01:21.2]} 49. Red2 {[%clk 0:00:04.7]} 49... Rxb3 {[%clk 0:01:21.8]} 50.
Rxd7+ {[%clk 0:00:04.9]} 50... Kc8 {[%clk 0:01:22.4]} 51. Rd8+ {[%clk
0:00:04.6]} 51... Kb7 {[%clk 0:01:21.8]} 52. R8d7+ {[%clk 0:00:04.3]} 52... Kb8
{[%clk 0:01:21]} 53. R7d6 {[%clk 0:00:03.8]} 53... Rb2+ {[%clk 0:01:18.9]} 54.
Kf3 {[%clk 0:00:03.7]} 54... Rb3+ {[%clk 0:01:19.3]} 55. Kg4 {[%clk 0:00:04]}
55... Rg3+ {[%clk 0:01:18.8]} 56. Kf5 {[%clk 0:00:04.1]} 56... Rxg2 {[%clk
0:01:19.2]} 57. Rxh6 {[%clk 0:00:02.8]} 57... f3 {[%clk 0:01:17.8]} 58. Rh7
{[%clk 0:00:02.4]} 58... f2 {[%clk 0:01:13.8]} 59. Rd8# {[%clk 0:00:02.1]} 1-0

[Event "Early-Titled-Tuesday-Blitz-February-06-2024"]
[Site "Chess.com"]
[Date "2024.02.06"]
[Round "11"]
[White "ValentunHulka"]
[Black "Fandorine"]
[Result "0-1"]
[WhiteElo "2810"]
[BlackElo "2960"]
[TimeControl "180+1"]
[EndTime "10:06:17 PST"]
[Termination "Fandorine won by checkmate"]

1. d4 {[%clk 0:03:00.9]} 1... Nf6 {[%clk 0:03:00]} 2. c4 {[%clk 0:03:01.1]} 2...
e6 {[%clk 0:03:00.4]} 3. Nf3 {[%clk 0:03:01.7]} 3... d5 {[%clk 0:03:00.1]} 4. g3
{[%clk 0:03:02.4]} 4... Be7 {[%clk 0:02:56.6]} 5. Bg2 {[%clk 0:03:01.8]} 5...
O-O {[%clk 0:02:57.3]} 6. Qc2 {[%clk 0:03:02.5]} 6... c6 {[%clk 0:02:53.9]} 7.
O-O {[%clk 0:03:01.8]} 7... a5 {[%clk 0:02:53.4]} 8. Nbd2 {[%clk 0:02:55.5]}
8... b6 {[%clk 0:02:52.1]} 9. b3 {[%clk 0:02:53]} 9... Ba6 {[%clk 0:02:47]} 10.
Rd1 {[%clk 0:02:50.8]} 10... Nbd7 {[%clk 0:02:45.3]} 11. e4 {[%clk 0:02:48.7]}
11... Rc8 {[%clk 0:02:43.7]} 12. Bb2 {[%clk 0:02:46.3]} 12... c5 {[%clk
0:02:38.3]} 13. exd5 {[%clk 0:02:46.5]} 13... exd5 {[%clk 0:02:38.3]} 14. dxc5
{[%clk 0:02:34.8]} 14... Nxc5 {[%clk 0:02:26.1]} 15. Rac1 {[%clk 0:02:31.2]}
15... Qc7 {[%clk 0:02:15.2]} 16. Qb1 {[%clk 0:02:26.5]} 16... Rfd8 {[%clk
0:02:10.4]} 17. Nd4 {[%clk 0:02:15.6]} 17... g6 {[%clk 0:01:51.9]} 18. cxd5
{[%clk 0:02:08.6]} 18... Nxd5 {[%clk 0:01:50.8]} 19. Ne4 {[%clk 0:02:01.7]}
19... Nb4 {[%clk 0:01:26.9]} 20. a3 {[%clk 0:01:44]} 20... Nbd3 {[%clk
0:01:15.1]} 21. Nxc5 {[%clk 0:01:43.6]} 21... bxc5 {[%clk 0:01:03.9]} 22. Nc6
{[%clk 0:01:14.2]} 22... Nxc1 {[%clk 0:00:48]} 23. Rxd8+ {[%clk 0:01:14.1]}
23... Rxd8 {[%clk 0:00:42.1]} 24. Qxc1 {[%clk 0:01:14.7]} 24... Rd6 {[%clk
0:00:36.9]} 25. Nxe7+ {[%clk 0:00:19.3]} 25... Qxe7 {[%clk 0:00:36.4]} 26. Bf3
{[%clk 0:00:20]} 26... Rd3 {[%clk 0:00:19.7]} 27. Qh6 {[%clk 0:00:11.1]} 27...
f6 {[%clk 0:00:16.4]} 28. Bc6 {[%clk 0:00:05.3]} 28... Rd6 {[%clk 0:00:10]} 29.
Bf3 {[%clk 0:00:04.2]} 29... Qe1+ {[%clk 0:00:09.9]} 30. Kg2 {[%clk 0:00:04.5]}
30... Qf1# {[%clk 0:00:10.5]} 0-1